bitfinex-derivatives/quotes_SOLF0:USTF0_20250714
["timestamp","ask_amount","ask_price","bid_price","bid_amount"]
[1752505538474,6.0276,165.87,165.78,7.47595219]
[1752505538675,521.28,165.88,165.8,7.47595219]
[1752505539070,527.3073,165.88,165.84,6.0283]
[1752505539275,521.28,165.88,165.8,7.47595219]
[1752505539472,528.75595219,165.88,165.77,7.47595219]
[1752505539679,7.47595219,165.86,165.77,7.47595219]
[1752505540175,7.47595219,165.86,165.8,6.0297]
[1752505540372,7.47595219,165.86,165.75,7.47595219]
[1752505540578,7.47595219,165.84,165.75,7.47595219]
[1752505540778,6.0294,165.82,165.78,6.0304]
[1752505541471,6.0297,165.81,165.78,6.0304]
[1752505542178,6.0293,165.82,165.79,6.0303]
[1752505542383,7.47595219,165.84,165.75,7.47595219]
[1752505542672,6.0282,165.85,165.82,6.029]
[1752505542866,528.75595219,165.88,165.77,7.47595219]
[1752505543477,528.75595219,165.88,165.81,6.0294]
[1752505544077,7.47595219,165.86,165.8,6.0299]
[1752505544272,7.47159538,165.85,165.75,7.47159538]
[1752505544473,6.0292,165.82,165.75,7.47159538]
[1752505544673,7.47159538,165.85,165.8,6.0299]
[1752505544879,7.47159538,165.85,165.75,7.47159538]
[1752505545376,7.47159538,165.82,165.71,4.97783282]
[1752505545672,7.47699816,165.73,165.68,4.97783282]
[1752505545873,7.47699816,165.7,165.61,5.04795689]
[1752505546076,7.47699816,165.66,165.55,7.47699816]
[1752505546277,6.0362,165.63,165.59,6.0376]
[1752505546477,7.47699816,165.66,165.51,1.9283]
[1752505546676,7.47699816,165.66,165.55,7.47699816]
[1752505546878,181.32,165.67,165.57,7.47699816]
[1752505547178,181.32,165.67,165.55,12.51593205]
[1752505547677,181.32,165.67,165.54,12.51593205]
[1752505548379,6.0355,165.65,165.59,6.0373]
[1752505548678,6.0355,165.65,165.54,12.51593205]
[1752505549074,181.32,165.67,165.54,12.51593205]
[1752505549673,6.0354,165.66,165.61,6.0366]
[1752505550482,6.0354,165.66,165.62,6.0365]
[1752505551285,199.87063205,165.67,165.54,12.51593205]
[1752505551478,193.83593205,165.67,165.54,12.51593205]
[1752505551781,6.034,165.69,165.59,12.51164748]
[1752505551972,181.0,165.7,165.59,12.51164748]
[1752505552676,181.0,165.7,165.6,1.24824]
[1752505552979,6.0344,165.68,165.63,6.0359]
[1752505553171,6.0344,165.68,165.6,1.24824]
[1752505553782,6.0344,165.68,165.64,6.0354]
[1752505554182,181.0,165.7,165.6,1.24824]
[1752505554582,181.0,165.7,165.62,6.0364]
[1752505555078,181.0,165.7,165.6,1.24824]
[1752505555285,181.0,165.7,165.63,6.0358]
[1752505555780,12.51164748,165.68,165.61,6.0368]
[1752505555984,12.51164748,165.67,165.61,6.0368]
[1752505556484,6.0356,165.65,165.61,6.0368]
[1752505556680,186.9356,165.65,165.61,6.0368]
[1752505556894,186.9356,165.65,165.62,6.0364]
[1752505557076,6.0357,165.64,165.6,1.24824]
[1752505557583,180.9,165.65,165.6,1.24824]
[1752505557977,533.65164748,165.71,165.64,6.0354]
[1752505557978,180.84,165.69,165.64,6.0354]
[1752505558881,6.0343,165.68,165.6,1.24824]
[1752505559277,180.84,165.69,165.62,6.0362]
[1752505559781,6.0352,165.66,165.62,6.0364]
[1752505560184,180.84,165.69,165.6,1.24824]
[1752505560385,180.84,165.69,165.62,6.0364]
[1752505560785,180.84,165.69,165.6,1.24824]
[1752505560987,6.0349,165.67,165.63,6.0358]
[1752505561386,180.84,165.69,165.6,1.24824]
[1752505563187,6.0345,165.68,165.6,1.24824]
[1752505563484,180.84,165.69,165.6,1.24824]
[1752505564396,12.5120794,165.68,165.6,7.28524]
[1752505564786,12.5120794,165.68,165.61,6.0366]
[1752505565290,12.5120794,165.68,165.6,1.24824]
[1752505565782,180.84,165.69,165.6,1.24824]
[1752505565979,6.0346,165.67,165.6,1.24824]
[1752505566180,180.84,165.69,165.6,1.24824]
[1752505566590,186.8739,165.69,165.66,6.0349]
[1752505566889,186.8739,165.69,165.61,12.5120794]
[1752505567090,180.84,165.69,165.62,7.48370487]
[1752505567692,6.0344,165.68,165.64,6.0357]
[1752505568188,6.0346,165.67,165.64,6.0357]
[1752505568490,6.0346,165.67,165.62,7.48370487]
[1752505568792,6.0345,165.68,165.64,6.0355]
[1752505568981,180.84,165.69,165.62,7.48370487]
[1752505569181,180.84,165.69,165.64,7.48370487]
[1752505569389,521.14,165.71,165.68,6.0342]
[1752505569590,702.0,165.71,165.64,7.48370487]
[1752505569991,6.0338,165.7,165.64,7.48370487]
[1752505570493,708.0332,165.71,165.64,7.48370487]
[1752505571094,702.0,165.71,165.64,7.48370487]
[1752505571589,702.0,165.71,165.6,1.24824]
[1752505571590,708.0333,165.71,165.6,1.24824]
[1752505571787,702.0,165.71,165.64,7.48370487]
[1752505571988,180.86,165.71,165.66,7.48370487]
[1752505572192,180.86,165.71,165.7,6.0335]
[1752505572392,6.0323,165.74,165.68,7.48370487]
[1752505572592,186.8723,165.74,165.68,7.48370487]
[1752505572795,180.84,165.74,165.68,7.48370487]
[1752505572988,180.84,165.74,165.68,7.47788644]
[1752505573385,186.8722,165.74,165.68,7.47788644]
[1752505573687,180.84,165.74,165.62,12.0731]
[1752505573888,180.84,165.74,165.65,7.47788644]
[1752505574194,188.31788644,165.74,165.65,7.47788644]
[1752505574395,6.033,165.72,165.68,6.034]
[1752505574601,180.84,165.74,165.65,7.48065683]
[1752505575489,7.48065683,165.69,165.6,1.24824]
[1752505575690,7.48802525,165.63,165.6,1.24824]
[1752505575894,180.82,165.62,165.6,1.24824]
[1752505576094,6.0368,165.61,165.6,1.24824]
[1752505576996,521.5,165.69,165.6,1.24824]
[1752505576997,7.48802525,165.66,165.6,1.24824]
[1752505577198,180.82,165.65,165.6,1.24824]
[1752505577401,521.5,165.69,165.61,7.48796114]
[1752505577895,180.82,165.68,165.61,7.48796114]
[1752505578095,180.82,165.68,165.66,6.0349]
[1752505578295,7.48796114,165.72,165.61,7.48796114]
[1752505578493,180.82,165.71,165.61,7.48796114]
[1752505578696,6.0341,165.69,165.65,6.035]
[1752505579002,6.0341,165.69,165.63,7.48796114]
[1752505579798,6.0336,165.7,165.66,6.0347]
[1752505580400,6.0339,165.69,165.66,6.0347]
[1752505580600,180.82,165.71,165.65,6.0352]
[1752505580797,180.82,165.71,165.63,7.48796114]
[1752505581102,188.30367917,165.71,165.64,6.0356]
[1752505581500,6.0345,165.68,165.64,6.0356]
[1752505581900,188.30367917,165.71,165.63,6.0359]
[1752505582401,7.48367917,165.67,165.6,1.24824]
[1752505582599,180.82,165.66,165.6,1.24824]
[1752505584408,180.82,165.66,165.61,6.0366]
[1752505584606,180.82,165.66,165.6,1.24824]
[1752505584802,6.0355,165.65,165.61,6.0365]
[1752505585106,180.82,165.66,165.61,6.0365]
[1752505585608,6.0356,165.65,165.61,6.0365]
[1752505585809,180.82,165.66,165.61,6.0365]
[1752505586204,180.82,165.66,165.6,1.24824]
[1752505586812,6.0355,165.65,165.62,6.0364]
[1752505587005,180.82,165.66,165.6,1.24824]
[1752505587600,6.0355,165.65,165.62,6.0363]
[1752505587804,180.82,165.66,165.6,1.24824]
[1752505588006,180.82,165.66,165.6,8.73191917]
[1752505588208,7.48448252,165.71,165.61,7.48448252]
[1752505588403,7.48448252,165.71,165.6,1.24824]
[1752505588404,180.82,165.71,165.63,7.48448252]
[1752505588701,6.0335,165.7,165.63,7.48448252]
[1752505589405,6.0335,165.7,165.67,6.0345]
[1752505589905,186.8533,165.71,165.68,6.0341]
[1752505590210,180.82,165.71,165.63,7.48448252]
[1752505590413,6.0336,165.7,165.66,6.0346]
[1752505590711,180.82,165.71,165.63,7.48448252]
[1752505591412,188.30448252,165.71,165.6,8.73272252]
[1752505591610,6.0345,165.68,165.65,6.0352]
[1752505591811,188.30448252,165.71,165.6,8.73272252]
[1752505592513,6.0346,165.67,165.63,6.0359]
[1752505592813,6.0346,165.67,165.6,8.73272252]
[1752505593014,6.0351,165.66,165.62,6.0361]
[1752505593211,7.48448252,165.69,165.6,1.24824]
[1752505593413,6.0354,165.65,165.62,6.0364]
[1752505594012,188.28448252,165.65,165.6,1.24824]
[1752505594714,180.8,165.65,165.6,1.24824]
[1752505594910,180.8,165.68,165.6,8.73272252]
[1752505595218,7.48448252,165.66,165.6,1.24824]
[1752505595614,6.0368,165.61,165.6,1.24824]
[1752505596613,7.48448252,165.58,165.48,14.17392243]
[1752505596811,199.67,165.61,165.47,6.68943991]
[1752505597012,7.48448252,165.56,165.46,6.68943991]
[1752505597309,7.48448252,165.54,165.46,6.68943991]
[1752505597613,7.48448252,165.54,165.45,14.17392243]
[1752505598012,4.82864646,165.63,165.47,7.48448252]
[1752505598214,183.34,165.62,165.46,6.68943991]
[1752505598514,6.0381,165.58,165.53,6.0395]
[1752505598718,7.48448252,165.59,165.49,7.48448252]
[1752505599009,7.48448252,165.59,165.44,531.59415987]
[1752505599010,6.0401,165.52,165.44,521.56]
[1752505599512,7.49969165,165.53,165.44,521.56]
[1752505599713,6.0402,165.52,165.48,6.0413]
[1752505599913,6.0402,165.52,165.44,521.56]
[1752505599914,7.49969165,165.53,165.44,521.56]
[1752505601213,6.0405,165.51,165.47,6.0417]
[1752505601513,6.0405,165.51,165.44,521.56]
[1752505601714,7.49969165,165.53,165.44,521.56]
[1752505601912,6.0406,165.51,165.47,6.0416]
[1752505602109,7.49969165,165.53,165.47,6.0416]
[1752505602308,6.0415,165.49,165.38,6.68943991]
[1752505602527,7.49969165,165.51,165.4,7.49969165]
[1752505603214,7.49969165,165.51,165.38,6.68943991]
[1752505603415,7.49969165,165.51,165.37,183.32]
[1752505603416,13.54039165,165.51,165.4,7.49969165]
[1752505603610,7.49969165,165.51,165.42,7.49969165]
[1752505603823,7.49969165,165.52,165.42,7.49969165]
[1752505604017,13.53979165,165.52,165.48,6.0413]
[1752505604211,7.50622266,165.49,165.34,6.68943991]
[1752505604416,7.50622266,165.4,165.28,10.03415987]
[1752505604612,18.05,165.47,165.28,10.03415987]
[1752505604613,183.6,165.41,165.28,7.50622266]
[1752505604818,7.50622266,165.39,165.28,7.50622266]
[1752505605018,6.046,165.36,165.3,6.0478]
[1752505605219,7.50622266,165.39,165.22,7.32199048]
[1752505605422,183.6,165.41,165.22,6.26927929]
[1752505605423,547.39622266,165.4,165.22,6.26927929]
[1752505605620,18.05,165.36,165.22,6.26927929]
[1752505605821,7.50622266,165.31,165.22,6.26927929]
[1752505606125,6.0502,165.25,165.22,6.26927929]
[1752505606328,7.50622266,165.27,165.22,6.26927929]
[1752505606525,202.65,165.33,165.22,6.26927929]
[1752505606717,7.50622266,165.28,165.22,6.26927929]
[1752505606922,12.57509659,165.29,165.22,6.26927929]
[1752505607127,12.57509659,165.28,165.16,6.0531]
[1752505607324,12.57509659,165.28,165.05,526.87864574]
[1752505607524,12.57509659,165.29,165.16,12.57509659]
[1752505607826,12.57509659,165.17,165.02,5.03864574]
[1752505608025,12.57509659,165.11,165.01,0.11795559]
[1752505608423,708.5,165.18,165.01,0.11795559]
[1752505608424,187.52,165.17,165.01,0.11795559]
[1752505608621,12.57509659,165.09,165.01,0.11795559]
[1752505608920,12.57509659,165.06,165.01,0.11795559]
[1752505609127,12.57509659,165.08,165.01,0.11795559]
[1752505609324,540.13,165.18,165.01,0.11795559]
[1752505609531,522.08,165.18,165.01,12.69305218]
[1752505609835,12.57509659,165.19,165.01,522.59795559]
[1752505610038,12.57509659,165.23,165.1,12.57509659]
[1752505610240,723.83509659,165.26,165.13,18.62929659]
[1752505610532,711.26,165.26,165.01,0.11795559]
[1752505610732,711.26,165.26,165.08,12.57509659]
[1752505610937,522.48,165.26,165.14,12.57509659]
[1752505611131,12.57509659,165.32,165.2,12.57509659]
[1752505611333,191.16,165.33,165.16,12.57509659]
[1752505611537,522.48,165.34,165.23,12.57509659]
[1752505611732,522.48,165.34,165.14,522.48]
[1752505611733,6.0482,165.3,165.26,12.57509659]
[1752505611937,191.46,165.38,165.26,12.57509659]
[1752505612332,191.46,165.38,165.14,522.48]
[1752505612534,191.46,165.38,165.27,12.57509659]
[1752505612740,124.55410161,165.41,165.3,12.57509659]
[1752505613039,124.55410161,165.41,165.31,12.57509659]
[1752505613443,124.55410161,165.41,165.24,522.62]
[1752505613838,12.57509659,165.4,165.27,12.57509659]
[1752505614036,12.57509659,165.4,165.29,6.0483]
[1752505614236,12.57509659,165.4,165.25,12.57509659]
[1752505614538,12.57509659,165.38,165.25,12.57509659]
[1752505614733,2.53794505,165.4,165.24,522.62]
[1752505614941,2.53794505,165.4,165.25,12.57509659]
[1752505615135,137.1291982,165.41,165.28,12.57509659]
[1752505615439,124.55410161,165.41,165.24,906.12]
[1752505615640,12.57509659,165.41,165.24,906.12]
[1752505615840,12.57509659,165.41,165.28,12.57509659]
[1752505616036,522.48,165.42,165.31,12.57509659]
[1752505616241,522.48,165.42,165.24,906.12]
[1752505616441,522.48,165.42,165.3,12.57509659]
[1752505616738,12.57509659,165.4,165.27,12.57509659]
[1752505617242,6.0468,165.34,165.29,6.0484]
[1752505617443,12.57509659,165.4,165.29,6.0484]
[1752505617643,12.57509659,165.4,165.27,12.57509659]
[1752505617845,6.0464,165.35,165.3,6.048]
[1752505618041,12.57509659,165.4,165.27,12.57509659]
[1752505618442,6.046,165.36,165.3,6.0481]
[1752505618845,522.48,165.42,165.3,12.57509659]
[1752505619346,522.48,165.42,165.24,918.69509659]
[1752505619546,12.57509659,165.41,165.3,6.0478]
[1752505619740,12.57509659,165.41,165.24,906.12]
[1752505619940,2.5361558,165.41,165.24,906.12]
[1752505620142,2.5361558,165.41,165.29,6.0484]
[1752505620346,12.57509659,165.39,165.26,12.57509659]
[1752505620547,6.0448,165.39,165.24,906.12]
[1752505620846,191.66,165.45,165.35,12.57509659]
[1752505621238,6.0434,165.43,165.38,12.57509659]
[1752505621442,191.66,165.45,165.38,12.57509659]
[1752505621846,522.58,165.51,165.41,12.57509659]
[1752505622044,191.5,165.5,165.41,12.57509659]
[1752505622645,191.5,165.5,165.33,191.5]
[1752505622845,191.5,165.5,165.39,12.57509659]
[1752505624040,191.5,165.5,165.42,12.57509659]
[1752505624244,191.5,165.5,165.34,522.58]
[1752505624439,191.5,165.5,165.39,12.57509659]
[1752505624652,6.0415,165.49,165.43,6.043]
[1752505624846,191.5,165.5,165.42,12.57509659]
[1752505625450,191.5,165.5,165.37,12.54087816]
[1752505625650,191.5,165.5,165.39,12.54165241]
[1752505625841,12.54165241,165.53,165.42,12.54165241]
[1752505626041,540.53,165.6,165.42,12.54165241]
[1752505626042,191.22,165.55,165.42,12.54165241]
[1752505626448,6.0407,165.51,165.42,12.54165241]
[1752505626752,203.76165241,165.55,165.41,12.54165241]
[1752505627147,12.54165241,165.52,165.39,12.54165241]
[1752505627951,191.22,165.55,165.42,12.54165241]
[1752505628253,6.0405,165.51,165.42,12.54165241]
[1752505628650,203.76165241,165.55,165.42,12.54165241]
[1752505628953,6.041,165.5,165.45,6.0423]
[1752505629149,203.76165241,165.55,165.34,522.58]
[1752505629356,12.54165241,165.52,165.39,12.54165241]
[1752505629657,6.0419,165.47,165.42,6.0437]
[1752505630047,12.54165241,165.54,165.42,12.54165241]
[1752505630249,191.22,165.55,165.45,12.54165241]
[1752505630558,6.0396,165.54,165.49,6.0409]
[1752505630757,191.22,165.55,165.45,12.54165241]
[1752505631150,191.22,165.55,165.45,12.53159264]
[1752505631847,6.04,165.53,165.48,6.0415]
[1752505632252,6.04,165.53,165.48,6.0413]
[1752505632445,6.04,165.53,165.45,12.53159264]
[1752505632658,191.22,165.55,165.48,12.53159264]
[1752505632958,535.01159264,165.6,165.51,6.0401]
[1752505633157,535.01159264,165.6,165.48,12.53159264]
[1752505633361,535.01159264,165.6,165.5,6.0407]
[1752505633558,6.0388,165.56,165.48,12.53159264]
[1752505633752,535.01159264,165.6,165.39,190.74]
[1752505633955,535.01159264,165.6,165.47,12.53159264]
[1752505634259,522.48,165.6,165.47,12.53159264]
[1752505634552,522.48,165.6,165.53,6.0397]
[1752505634756,6.0385,165.57,165.47,12.53159264]
[1752505634957,522.48,165.6,165.47,12.53159264]
[1752505635255,522.48,165.6,165.49,12.52473475]
[1752505635453,12.5382356,165.53,165.29,5.03864574]
[1752505635654,12.5382356,165.5,165.29,12.0968]
[1752505635846,190.98,165.49,165.42,6.0437]
[1752505636052,190.98,165.49,165.42,12.5382356]
[1752505636252,191.16,165.57,165.45,12.5382356]
[1752505637059,191.16,165.57,165.49,6.0411]
[1752505637362,191.16,165.57,165.45,12.5382356]
[1752505637656,203.6982356,165.57,165.45,12.5382356]
[1752505637854,191.16,165.57,165.45,12.5382356]
[1752505638060,224.69870439,165.59,165.49,6.0411]
[1752505638256,224.69870439,165.59,165.38,522.22]
[1752505638457,224.69870439,165.59,165.45,12.5382356]
[1752505638854,2.29555159,165.58,165.45,12.5382356]
[1752505639754,224.69870439,165.59,165.45,12.5382356]
[1752505640161,6.0391,165.55,165.51,6.0403]
[1752505640361,6.0391,165.55,165.48,12.5382356]
[1752505641058,522.48,165.6,165.48,12.5382356]
[1752505641255,522.48,165.6,165.51,12.5382356]
[1752505641563,6.0385,165.57,165.51,12.5382356]
[1752505641862,522.48,165.6,165.52,6.04]
[1752505642054,522.48,165.6,165.48,12.5382356]
[1752505642255,522.48,165.6,165.51,12.5382356]
[1752505642458,522.48,165.6,165.55,6.0389]
[1752505642656,522.48,165.6,165.48,12.5382356]
[1752505642967,535.0182356,165.6,165.45,12.5382356]
[1752505643155,6.0401,165.52,165.45,12.5382356]
[1752505643464,12.5382356,165.54,165.45,6.0424]
[1752505643658,12.5382356,165.51,165.38,534.7582356]
[1752505644258,190.78,165.55,165.36,12.5382356]
[1752505644259,12.5382356,165.48,165.36,12.5382356]
[1752505644462,12.5382356,165.48,165.41,6.0439]
[1752505644657,6.0425,165.46,165.36,12.5382356]
[1752505644862,190.76,165.49,165.36,12.5382356]
[1752505645058,190.76,165.49,165.3,730.9433]
[1752505645369,6.0429,165.45,165.37,12.5382356]
[1752505645864,190.76,165.49,165.37,12.5382356]
[1752505646069,190.76,165.49,165.42,6.0434]
[1752505646274,190.76,165.49,165.3,730.9433]
[1752505646568,190.76,165.49,165.37,12.5382356]
[1752505647163,12.5382356,165.47,165.34,12.5382356]
[1752505647668,12.5382356,165.41,165.28,12.5382356]
[1752505648165,12.5382356,165.41,165.21,190.48]
[1752505648166,12.5382356,165.45,165.31,12.5382356]
[1752505648569,6.0447,165.4,165.35,6.0462]
[1752505648768,12.5382356,165.45,165.31,12.5382356]
[1752505649566,6.0434,165.43,165.39,6.0447]
[1752505650463,522.08,165.46,165.41,6.0438]
[1752505650675,522.08,165.46,165.37,12.5382356]
[1752505650970,203.9782356,165.49,165.37,12.5382356]
[1752505651166,12.5382356,165.52,165.4,12.5382356]
[1752505651368,203.9782356,165.52,165.4,12.5382356]
[1752505651567,203.9782356,165.52,165.42,6.0434]
[1752505651768,203.9782356,165.52,165.38,12.5382356]
[1752505651970,6.0422,165.47,165.38,12.5382356]
[1752505652567,6.0423,165.46,165.41,6.0437]
[1752505652774,12.5382356,165.46,165.35,12.5382356]
[1752505653167,12.5382356,165.49,165.32,191.44]
[1752505653366,12.5382356,165.49,165.36,12.5382356]
[1752505653573,6.0421,165.47,165.42,6.0434]
[1752505653875,12.5382356,165.49,165.42,6.0434]
[1752505654075,12.5382356,165.49,165.36,12.5382356]
[1752505654273,6.0423,165.46,165.36,12.5382356]
[1752505654575,12.5382356,165.49,165.36,12.5382356]
[1752505654767,6.0421,165.47,165.42,6.0434]
[1752505654965,6.0421,165.47,165.36,12.5382356]
[1752505655370,6.0421,165.47,165.42,6.0434]
[1752505655776,6.0421,165.47,165.36,12.5382356]
[1752505656075,12.5382356,165.49,165.36,12.5382356]
[1752505656574,6.0422,165.47,165.36,12.5382356]
[1752505656769,12.5382356,165.5,165.36,12.5382356]
[1752505656972,12.5382356,165.52,165.39,12.5382356]
[1752505657169,12.5382356,165.52,165.37,12.5382356]
[1752505657376,12.5382356,165.49,165.37,12.5382356]
[1752505658071,6.0413,165.49,165.45,6.0423]
[1752505658274,14.85975222,165.53,165.4,12.5382356]
[1752505658474,12.5382356,165.53,165.4,12.5382356]
[1752505659869,6.0411,165.5,165.45,6.0424]
[1752505660277,12.5382356,165.53,165.45,6.0424]
[1752505660978,12.5382356,165.53,165.43,6.0431]
[1752505661175,12.5382356,165.5,165.43,6.0431]
[1752505661375,6.0425,165.46,165.37,12.5382356]
[1752505661572,6.0425,165.46,165.39,6.0445]
[1752505661771,12.5382356,165.5,165.37,12.5382356]
[1752505662373,6.0422,165.47,165.37,12.5382356]
[1752505662775,12.5382356,165.5,165.37,12.5382356]
[1752505663373,6.0423,165.46,165.37,12.5382356]
[1752505663574,12.5382356,165.5,165.37,12.5382356]
[1752505663879,12.5382356,165.51,165.37,12.5382356]
[1752505664277,12.5382356,165.51,165.44,6.0427]
[1752505664483,12.5382356,165.51,165.37,17.57688134]
[1752505664872,12.5382356,165.51,165.4,12.5382356]
[1752505664873,18.5789356,165.51,165.4,12.5382356]
[1752505665079,12.5382356,165.54,165.4,12.5382356]
[1752505665375,12.54595076,165.45,165.38,5.03864574]
[1752505665577,12.54595076,165.39,165.29,5.03864574]
[1752505665776,30.63595076,165.48,165.25,5.03864574]
[1752505665777,12.54595076,165.36,165.25,5.03864574]
[1752505665982,12.54595076,165.37,165.23,12.54595076]
[1752505666374,12.54595076,165.38,165.3,6.0478]
[1752505666574,6.0465,165.35,165.3,6.0478]
[1752505666784,6.0465,165.35,165.26,12.54595076]
[1752505666972,6.0467,165.34,165.24,17.5845965]
[1752505667171,12.54595076,165.38,165.24,12.54595076]
[1752505667578,6.0465,165.35,165.3,6.048]
[1752505668278,12.54595076,165.38,165.24,12.54595076]
[1752505668779,18.59115076,165.38,165.34,6.0463]
[1752505669878,6.0449,165.39,165.35,6.0461]
[1752505670183,12.54595076,165.4,165.3,12.54595076]
[1752505670484,6.0445,165.4,165.36,6.0456]
[1752505670876,6.0445,165.4,165.35,6.0461]
[1752505671282,12.55256782,165.4,165.3,12.55256782]
[1752505671671,42.78576782,165.48,165.3,12.55256782]
[1752505671875,712.66,165.47,165.3,12.55256782]
[1752505672075,12.55256782,165.4,165.3,12.55256782]
[1752505672276,2.15816104,165.46,165.3,12.55256782]
[1752505672475,12.55256782,165.43,165.3,12.55256782]
[1752505672889,12.55256782,165.43,165.36,6.0457]
[1752505673482,6.0443,165.41,165.36,6.0457]
[1752505673779,12.55256782,165.43,165.36,6.0457]
[1752505673981,12.55256782,165.4,165.28,12.55256782]
[1752505674783,6.0452,165.39,165.28,12.55256782]
[1752505674984,12.55256782,165.43,165.31,12.55256782]
[1752505675185,6.0437,165.42,165.31,12.55256782]
[1752505676087,6.0434,165.43,165.31,12.55256782]
[1752505676289,12.55256782,165.45,165.31,12.55256782]
[1752505676983,6.0437,165.42,165.38,6.045]
[1752505677185,12.55256782,165.45,165.31,12.55256782]
[1752505677378,6.0427,165.45,165.41,6.044]
[1752505677582,712.66,165.47,165.34,12.55256782]
[1752505677883,6.0425,165.46,165.41,6.0438]
[1752505678177,712.66,165.47,165.37,12.55256782]
[1752505678582,190.34,165.47,165.37,12.55256782]
[1752505678786,12.55256782,165.49,165.37,12.55256782]
[1752505679188,6.0425,165.46,165.42,6.0435]
[1752505679486,12.55256782,165.49,165.37,12.55256782]
[1752505679789,6.0418,165.48,165.44,6.0427]
[1752505679985,12.55256782,165.49,165.37,12.55256782]
[1752505680191,6.0416,165.48,165.44,6.0426]
[1752505680579,125.08933542,165.5,165.37,12.55256782]
[1752505680786,6.0409,165.5,165.4,12.55256782]
[1752505680993,197.18063796,165.52,165.42,7.50063796]
[1752505681384,6.0414,165.49,165.42,7.50063796]
[1752505681583,7.50063796,165.5,165.42,7.50063796]
[1752505681988,13.54153796,165.5,165.42,7.50063796]
[1752505682189,6.0409,165.5,165.42,7.50063796]
[1752505682493,6.0409,165.5,165.45,6.0423]
[1752505682693,6.0409,165.5,165.42,7.50063796]
[1752505682890,6.0405,165.51,165.42,7.50063796]
[1752505683189,197.18063796,165.52,165.42,7.50063796]
[1752505683584,6.0408,165.5,165.42,7.50063796]
[1752505683985,7.50063796,165.52,165.37,12.091]
[1752505684181,7.50063796,165.48,165.38,7.50063796]
[1752505684595,6.0425,165.46,165.38,7.50063796]
[1752505685288,6.0427,165.45,165.38,7.50063796]
[1752505685489,2.16074174,165.52,165.35,522.36]
[1752505685490,7.50063796,165.46,165.36,7.50063796]
[1752505685793,6.0431,165.44,165.4,6.0442]
[1752505686092,7.50063796,165.46,165.36,7.50063796]
[1752505686293,7.50063796,165.46,165.39,6.0445]
[1752505686294,6.0433,165.43,165.39,6.0445]
[1752505686488,6.0433,165.43,165.35,529.86063796]
[1752505686992,6.0433,165.43,165.39,6.0445]
[1752505687381,6.043,165.44,165.35,529.86063796]
[1752505687792,7.50063796,165.46,165.35,529.86063796]
[1752505688290,6.0436,165.43,165.38,6.0451]
[1752505688489,2.16036522,165.52,165.38,6.0451]
[1752505688490,7.50063796,165.44,165.38,6.0451]
[1752505688690,7.50063796,165.44,165.35,522.36]
[1752505688994,7.50739847,165.45,165.35,529.86739847]
[1752505689493,7.50739847,165.49,165.35,522.36]
[1752505689692,7.50739847,165.49,165.38,7.50739847]
[1752505689893,6.0424,165.46,165.42,6.0435]
[1752505690795,6.0427,165.45,165.41,6.044]
[1752505691093,6.0427,165.45,165.38,7.50739847]
[1752505691094,7.50739847,165.45,165.36,7.50739847]
[1752505691293,7.50734586,165.4,165.33,6.0468]
[1752505691498,188.34,165.45,165.29,7.51274544]
[1752505691900,7.51274544,165.43,165.28,5.0408207]
[1752505692099,7.51274544,165.43,165.32,7.51274544]
[1752505692991,6.0444,165.41,165.32,7.51274544]
[1752505693600,6.0438,165.42,165.32,7.51274544]
[1752505693802,7.51274544,165.44,165.34,7.51274544]
[1752505694195,188.34,165.45,165.36,7.51274544]
[1752505694596,188.34,165.45,165.42,6.0435]
[1752505694792,7.51274544,165.47,165.38,7.51274544]
[1752505694992,2.16114447,165.52,165.39,7.50359071]
[1752505695210,6.0423,165.46,165.42,6.0434]
[1752505695405,7.50359071,165.47,165.37,7.50359071]
[1752505695702,7.51453665,165.38,165.25,5.0408207]
[1752505695900,7.51453665,165.29,165.19,7.51453665]
[1752505696301,7.51453665,165.32,165.21,7.51453665]
[1752505696499,7.51889929,165.32,165.22,7.51889929]
[1752505696801,7.51889929,165.3,165.19,12.55971999]